fUST/lending_fUST_20250213
["ID","MTS","AMOUNT","RATE_DAILY","PERIOD"]
[352859313,1739377844144,-500.0,0.00011506,2]
[352859314,1739377844153,-500.0,0.00011506,2]
[352859315,1739377844163,-508.39,0.00011506,2]
[352859316,1739377844172,-2066.17,0.00011506,2]
[352859317,1739377844182,-500.0,0.00011506,2]
[352859318,1739377844191,-500.0,0.00011506,2]
[352859319,1739377844201,-500.0,0.00011506,2]
[352859320,1739377844212,-646.67,0.00011506,2]
[352859321,1739377844224,-561.07,0.00011506,2]
[352859322,1739377844234,-500.0,0.00011506,2]
[352859323,1739377844244,-500.0,0.00011506,2]
[352859324,1739377844254,-500.0,0.00011506,2]
[352859325,1739377844264,-500.0,0.00011506,2]
[352859326,1739377844274,-2279.74,0.00011506,2]
[352859327,1739377844284,-500.0,0.00011506,2]
[352859328,1739377844293,-500.0,0.00011506,2]
[352859329,1739377844303,-1191.76,0.00011506,2]
[352859330,1739377844313,-4668.81,0.00011506,2]
[352859331,1739377844323,-500.0,0.00011506,2]
[352859332,1739377844333,-500.0,0.00011506,2]
[352859333,1739377844343,-500.0,0.00011506,2]
[352859334,1739377844352,-500.0,0.00011506,2]
[352859335,1739377844361,-500.0,0.00011506,2]
[352859336,1739377844371,-500.0,0.00011506,2]
[352859337,1739377844381,-500.0,0.00011506,2]
[352859338,1739377844391,-500.0,0.00011506,2]
[352859339,1739377844400,-500.0,0.00011506,2]
[352859340,1739377844410,-500.0,0.00011506,2]
[352859341,1739377844420,-500.0,0.00011506,2]
[352859342,1739377844430,-516.29,0.00011506,2]
[352859343,1739377844441,-500.0,0.00011506,2]
[352859344,1739377844451,-963.2,0.00011506,2]
[352859345,1739377844460,-500.0,0.00011506,2]
[352859346,1739377844470,-500.0,0.00011506,2]
[352859347,1739377844479,-500.0,0.00011506,2]
[352859348,1739377844489,-500.0,0.0001154,2]
[352859349,1739377844500,-500.0,0.00011643,2]
[352859350,1739377844510,-500.0,0.00011643,2]
[352859351,1739377844520,-500.0,0.00011643,2]
[352859352,1739377844530,-500.0,0.00011643,2]
[352859353,1739377844539,-500.0,0.00011643,2]
[352859354,1739377844548,-500.0,0.00011643,2]
[352859355,1739377844557,-500.0,0.00011643,2]
[352859356,1739377844567,-500.0,0.00011643,2]
[352859357,1739377844576,-500.0,0.00011643,2]
[352859358,1739377844585,-500.0,0.00011643,2]
[352859359,1739377844594,-500.0,0.00011643,2]
[352859360,1739377844604,-500.0,0.00011643,2]
[352859361,1739377844613,-500.0,0.00011643,2]
[352859362,1739377844623,-500.0,0.00011643,2]
[352859363,1739377844633,-500.0,0.00011643,2]
[352859364,1739377844643,-500.0,0.00011643,2]
[352859365,1739377844652,-500.0,0.00011643,2]
[352859366,1739377844661,-500.0,0.00011643,2]
[352859367,1739377844671,-500.0,0.00011643,2]
[352859368,1739377844680,-500.0,0.00011643,2]
[352859369,1739377844689,-500.0,0.00011643,2]
[352859370,1739377844698,-500.0,0.00011643,2]
[352859371,1739377844708,-500.0,0.00011643,2]
[352859372,1739377844717,-1385.7,0.00011643,2]
[352859373,1739377844727,-500.0,0.00011643,2]
[352859374,1739377844736,-500.0,0.00011643,2]
[352859375,1739377844746,-500.0,0.00011643,2]
[352859376,1739377844756,-500.0,0.00011643,2]
[352859377,1739377844765,-500.0,0.00011643,2]
[352859378,1739377844776,-500.0,0.00011643,2]
[352859379,1739377844786,-500.0,0.00011643,2]
[352859380,1739377844795,-500.0,0.00011643,2]
[352859381,1739377844804,-2066.17,0.00011643,2]
[352859382,1739377844812,-500.0,0.00011643,2]
[352859383,1739377844822,-548.48,0.00011643,2]
[352859384,1739377844831,-646.67,0.00011643,2]
[352859385,1739377844840,-607.72020951,0.00011643,2]
[352859386,1739377844849,-500.0,0.00011643,2]
[352859387,1739377844858,-500.0,0.00011643,2]
[352859388,1739377844868,-2279.74,0.00011643,2]
[352859389,1739377844877,-500.0,0.00011643,2]
[352859390,1739377844887,-500.0,0.00011643,2]
[352859391,1739377844897,-1191.76,0.00011643,2]
[352859392,1739377844906,-4668.81,0.00011643,2]
[352859393,1739377844915,-500.0,0.00011643,2]
[352859394,1739377844925,-500.0,0.00011643,2]
[352859395,1739377844934,-477.62032581,0.00011643,2]
[352859396,1739377844943,-500.0,0.00011643,2]
[352859397,1739377844952,-500.0,0.00011643,2]
[352859398,1739377844962,-500.0,0.00011643,2]
[352859399,1739377844972,-500.0,0.00011643,2]
[352859400,1739377844981,-516.29,0.00011643,2]
[352859401,1739377844990,-500.0,0.00011643,2]
[352859402,1739377845000,-963.2,0.00011643,2]
[352859403,1739377845010,-500.0,0.00011643,2]
[352859404,1739377845019,-500.0,0.00011643,2]
[352859405,1739377845031,-500.0,0.00011643,2]
[352859406,1739377845041,-500.0,0.0001178,2]
[352859407,1739377845062,-500.0,0.0001178,2]
[352859408,1739377845072,-500.0,0.0001178,2]
[352859409,1739377845081,-500.0,0.0001178,2]
[352859410,1739377845091,-500.0,0.0001178,2]
[352859411,1739377845101,-500.0,0.0001178,2]
[352859412,1739377845112,-500.0,0.0001178,2]
[352859413,1739377845122,-500.0,0.0001178,2]
[352859414,1739377845132,-500.0,0.0001178,2]
[352859415,1739377845141,-500.0,0.0001178,2]
[352859416,1739377845151,-500.0,0.0001178,2]
[352859417,1739377845161,-500.0,0.0001178,2]
[352859418,1739377845171,-500.0,0.0001178,2]
[352859419,1739377845181,-500.0,0.0001178,2]
[352859420,1739377845191,-500.0,0.0001178,2]
[352859421,1739377845200,-500.0,0.0001178,2]
[352859422,1739377845209,-500.0,0.0001178,2]
[352859423,1739377845219,-500.0,0.0001178,2]
[352859424,1739377845230,-500.0,0.0001178,2]
[352859425,1739377845240,-500.0,0.0001178,2]
[352859426,1739377845250,-500.0,0.0001178,2]
[352859427,1739377845260,-1385.7,0.0001178,2]
[352859428,1739377845269,-500.0,0.0001178,2]
[352859429,1739377845283,-500.0,0.0001178,2]
[352859430,1739377845293,-373.83626426,0.0001178,2]
[352859431,1739377845302,-500.0,0.0001178,2]
[352859432,1739377845312,-500.0,0.0001178,2]
[352859433,1739377845322,-500.0,0.0001178,2]
[352859434,1739377845332,-500.0,0.0001178,2]
[352859435,1739377845342,-500.0,0.0001178,2]
[352859436,1739377845352,-2066.17,0.0001178,2]
[352859437,1739377845362,-214.7,0.0001178,2]
[352859438,1739377845372,-646.67,0.0001178,2]
[352859439,1739377845382,-500.0,0.0001178,2]
[352859440,1739377845391,-500.0,0.0001178,2]
[352859441,1739377845400,-2279.74,0.0001178,2]
[352859442,1739377845410,-500.0,0.0001178,2]
[352859443,1739377845419,-500.0,0.0001178,2]
[352859444,1739377845428,-1191.76,0.0001178,2]
[352859445,1739377845438,-4668.81,0.0001178,2]
[352859446,1739377845448,-500.0,0.0001178,2]
[352859447,1739377845457,-500.0,0.0001178,2]
[352859448,1739377845467,-500.0,0.0001178,2]
[352859449,1739377845478,-636.0,0.0001178,2]
[352859450,1739377845489,-500.0,0.0001178,2]
[352859451,1739377845500,-516.29,0.0001178,2]
[352859452,1739377845510,-963.2,0.0001178,2]
[352859453,1739377845520,-500.0,0.0001178,2]
[352859454,1739377845532,-500.0,0.0001178,2]
[352859455,1739377845541,-500.0,0.00011884,2]
[352859456,1739377845551,-500.0,0.00011917,2]
[352859457,1739377845561,-528.30985344,0.00011917,2]
[352859458,1739377845571,-500.0,0.00011917,2]
[352859459,1739377845580,-500.0,0.00011917,2]
[352859460,1739377845590,-500.0,0.00011917,2]
[352859461,1739377845601,-500.0,0.00011917,2]
[352859462,1739377845614,-107.60643312,0.00011917,2]
[352859487,1739377850901,-392.39356688,0.00011917,2]
[352859488,1739377850913,-500.0,0.00011917,2]
[352859489,1739377850923,-500.0,0.00011917,2]
[352859490,1739377850934,-500.0,0.00011917,2]
[352859491,1739377850943,-500.0,0.00011917,2]
[352859492,1739377850952,-500.0,0.00011917,2]
[352859493,1739377850962,-500.0,0.00011917,2]
[352859494,1739377850971,-500.0,0.00011917,2]
[352859495,1739377850981,-500.0,0.00011917,2]
[352859496,1739377850990,-500.0,0.00011917,2]
[352859497,1739377851000,-500.0,0.00011917,2]
[352859498,1739377851009,-500.0,0.00011917,2]
[352859499,1739377851018,-500.0,0.00011917,2]
[352859500,1739377851027,-500.0,0.00011917,2]
[352859501,1739377851038,-1385.7,0.00011917,2]
[352859502,1739377851048,-500.0,0.00011917,2]
[352859503,1739377851057,-500.0,0.00011917,2]
[352859504,1739377851066,-500.0,0.00011917,2]
[352859505,1739377851076,-500.0,0.00011917,2]
[352859506,1739377851085,-500.0,0.00011917,2]
[352859507,1739377851095,-500.0,0.00011917,2]
[352859508,1739377851105,-500.0,0.00011917,2]
[352859509,1739377851114,-2066.17,0.00011917,2]
[352859510,1739377851123,-646.67,0.00011917,2]
[352859511,1739377851132,-500.0,0.00011917,2]
[352859512,1739377851141,-500.0,0.00011917,2]
[352859513,1739377851150,-2279.74,0.00011917,2]
[352859514,1739377851160,-500.0,0.00011917,2]
[352859515,1739377851170,-500.0,0.00011917,2]
[352859516,1739377851180,-1191.76,0.00011917,2]
[352859517,1739377851190,-4668.81,0.00011917,2]
[352859518,1739377851199,-500.0,0.00011917,2]
[352859519,1739377851208,-205.13981766,0.00011917,2]
[352859520,1739377851221,-294.86018234,0.00011917,2]
[352859521,1739377851231,-500.0,0.00011917,2]
[352859522,1739377851240,-500.0,0.00011917,2]
[352859523,1739377851249,-516.29,0.00011917,2]
[352859524,1739377851259,-963.2,0.00011917,2]
[352859525,1739377851268,-435.24132741,0.00011917,2]
[352859526,1739377851297,-500.0,0.00011095,2]
[352859527,1739377851306,-64.75867259,0.00011917,2]
[352859528,1739377851316,-500.0,0.00011917,2]
[352859529,1739377851325,-1646.2684759,0.00011949,2]
[352859530,1739377851335,-1000.0,0.00012011,2]
[352859531,1739377851344,-500.0,0.00012054,2]
[352859532,1739377851353,-161.18,0.00012054,2]
[352859533,1739377851364,-500.0,0.00012054,2]
[352859534,1739377851374,-500.0,0.00012054,2]
[352859535,1739377851385,-500.0,0.00012054,2]
[352859536,1739377851395,-500.0,0.00012054,2]
[352859537,1739377851404,-500.0,0.00012054,2]
[352859538,1739377851414,-500.0,0.00012054,2]
[352859539,1739377851423,-500.0,0.00012054,2]
[352859540,1739377851433,-500.0,0.00012054,2]
[352859541,1739377851443,-500.0,0.00012054,2]
[352859542,1739377851452,-500.0,0.00012054,2]
[352859543,1739377851462,-500.0,0.00012054,2]
[352859544,1739377851472,-500.0,0.00012054,2]
[352859545,1739377851483,-500.0,0.00012054,2]
[352859546,1739377851493,-500.0,0.00012054,2]
[352859547,1739377851509,-500.0,0.00012054,2]
[352859548,1739377851524,-169.45577899,0.00012054,2]
[352859549,1739377851540,-1385.7,0.00012054,2]
[352859550,1739377851551,-500.0,0.00012054,2]
[352859551,1739377851565,-500.0,0.00012054,2]
[352859552,1739377851578,-500.0,0.00012054,2]
[352859553,1739377851592,-646.23788814,0.00012054,2]
[352859554,1739377851610,-500.0,0.00012054,2]
[352859555,1739377851624,-370.6,0.00012054,2]
[352859556,1739377851638,-2066.17,0.00012054,2]
[352859557,1739377851653,-646.67,0.00012054,2]
[352859558,1739377851668,-500.0,0.00012054,2]
[352859559,1739377851681,-500.0,0.00012054,2]
[352859560,1739377851693,-2279.74,0.00012054,2]
[352859561,1739377851709,-500.0,0.00012054,2]
[352859562,1739377851723,-401.25,0.00012054,2]
[352859563,1739377851735,-1191.76,0.00012054,2]
[352859564,1739377851746,-4668.81,0.00012054,2]
[352859565,1739377851760,-500.0,0.00012054,2]
[352859566,1739377851774,-500.0,0.00012054,2]
[352859567,1739377851791,-439.37281864,0.00012054,2]
[352859568,1739377851805,-500.0,0.00012054,2]
[352859569,1739377851821,-516.29,0.00012054,2]
[352859570,1739377851837,-963.2,0.00012054,2]
[352859571,1739377851852,-500.0,0.00012054,2]
[352859572,1739377851863,-265.1108152,0.00012054,2]
[352859573,1739377851873,-500.0,0.00012191,2]
[352859574,1739377851885,-500.0,0.00012191,2]
[352859575,1739377851898,-500.0,0.00012191,2]
[352859576,1739377851913,-500.0,0.00012191,2]
[352859577,1739377851926,-500.0,0.00012191,2]
[352859578,1739377851937,-500.0,0.00012191,2]
[352859579,1739377851949,-500.0,0.00012191,2]
[352859580,1739377851964,-500.0,0.00012191,2]
[352859581,1739377851976,-500.0,0.00012191,2]
[352859582,1739377851987,-537.54,0.00012191,2]
[352859583,1739377851998,-500.0,0.00012191,2]
[352859584,1739377852010,-500.0,0.00012191,2]
[352859585,1739377852022,-500.0,0.00012191,2]
[352859586,1739377852035,-500.0,0.00012191,2]
[352859587,1739377852048,-649.81,0.00012191,2]
[352859588,1739377852060,-500.0,0.00012191,2]
[352859589,1739377852073,-1385.7,0.00012191,2]
[352859590,1739377852085,-500.0,0.00012191,2]
[352859591,1739377852096,-363.0,0.00012191,2]
[352859592,1739377852108,-500.0,0.00012191,2]
[352859593,1739377852121,-500.0,0.00012191,2]
[352859594,1739377852134,-2066.17,0.00012191,2]
[352859595,1739377852147,-646.67,0.00012191,2]
[352859596,1739377852158,-500.0,0.00012191,2]
[352859597,1739377852170,-500.0,0.00012191,2]
[352859598,1739377852182,-2169.60117045,0.00012191,2]
[352859599,1739377852799,-0.01628293,0.00012191,2]
[352859600,1739377852818,-110.12254662,0.00012191,2]
[352859601,1739377852828,-500.0,0.00012191,2]
[352859602,1739377852838,-1191.76,0.00012191,2]
[352859603,1739377852847,-4668.81,0.00012191,2]
[352859604,1739377852857,-500.0,0.00012191,2]
[352859605,1739377852866,-500.0,0.00012191,2]
[352859606,1739377852876,-169.2,0.00012191,2]
[352859607,1739377852885,-516.29,0.00012191,2]
[352859608,1739377852894,-963.2,0.00012191,2]
[352859609,1739377852903,-431.04,0.00012191,2]
[352859610,1739377852913,-500.0,0.00012328,2]
[352859611,1739377852922,-500.0,0.00012328,2]
[352859612,1739377852932,-500.0,0.00012328,2]
[352859613,1739377852942,-500.0,0.00012328,2]
[352859614,1739377852951,-500.0,0.00012328,2]
[352859615,1739377852961,-500.0,0.00012328,2]
[352859616,1739377852970,-500.0,0.00012328,2]
[352859617,1739377852979,-500.0,0.00012328,2]
[352859618,1739377852988,-500.0,0.00012328,2]
[352859619,1739377852998,-500.0,0.00012328,2]
[352859620,1739377853008,-500.0,0.00012328,2]
[352859621,1739377853018,-500.0,0.00012328,2]
[352859622,1739377853027,-621.03475363,0.00012328,2]
[352859623,1739377853039,-500.0,0.00012328,2]
[352859624,1739377853049,-500.0,0.00012328,2]
[352859625,1739377853058,-500.0,0.00012328,2]
[352859626,1739377853068,-500.0,0.00012328,2]
[352859627,1739377853077,-2066.17,0.00012328,2]
[352859628,1739377853087,-646.67,0.00012328,2]
[352859629,1739377853097,-423.17,0.00012328,2]
[352859630,1739377853106,-500.0,0.00012328,2]
[352859631,1739377853116,-2279.74,0.00012328,2]
[352859632,1739377853125,-500.0,0.00012328,2]
[352859633,1739377853136,-1191.76,0.00012328,2]
[352859634,1739377853147,-4668.81,0.00012328,2]
[352859635,1739377853157,-500.0,0.00012328,2]
[352859636,1739377853166,-500.0,0.00012328,2]
[352859637,1739377853175,-516.29,0.00012328,2]
[352859638,1739377853184,-963.2,0.00012328,2]
[352859639,1739377853194,-500.0,0.00012465,2]
[352859640,1739377853203,-500.0,0.00012465,2]
[352859641,1739377853213,-500.0,0.00012465,2]
[352859642,1739377853224,-500.0,0.00012465,2]
[352859643,1739377853233,-500.0,0.00012465,2]
[352859644,1739377853243,-500.0,0.00012465,2]
[352859645,1739377853253,-160.79,0.00012465,2]
[352859646,1739377853263,-500.0,0.00012465,2]
[352859647,1739377853272,-500.0,0.00012465,2]
[352859648,1739377853284,-500.0,0.00012465,2]
[352859649,1739377853293,-496.41,0.00012465,2]
[352859650,1739377853303,-608.04,0.00012465,2]
[352859651,1739377853312,-500.0,0.00012465,2]
[352859652,1739377853321,-593.40058709,0.00012465,2]
[352859653,1739377853330,-500.0,0.00012465,2]
[352859654,1739377853341,-500.0,0.00012465,2]
[352859655,1739377853351,-2066.17,0.00012465,2]
[352859656,1739377853360,-646.67,0.00012465,2]
[352859657,1739377853371,-500.0,0.00012465,2]
[352859658,1739377853381,-2279.74,0.00012465,2]
[352859659,1739377853391,-500.0,0.00012465,2]
[352859660,1739377853401,-1191.76,0.00012465,2]
[352859661,1739377853410,-4668.81,0.00012465,2]
[352859662,1739377853421,-500.0,0.00012465,2]
[352859663,1739377853430,-43.67854743,0.00012465,2]
[352859664,1739377853443,-456.32145257,0.00012465,2]
[352859665,1739377853453,-516.29,0.00012465,2]
[352859666,1739377853463,-963.2,0.00012465,2]
[352859667,1739377853473,-500.0,0.00012602,2]
[352859668,1739377853483,-500.0,0.00012602,2]
[352859669,1739377853494,-500.0,0.00012602,2]
[352859670,1739377853503,-500.0,0.00012602,2]
[352859671,1739377853513,-500.0,0.00012602,2]
[352859672,1739377853523,-500.0,0.00012602,2]
[352859673,1739377853535,-500.0,0.00012602,2]
[352859674,1739377853545,-500.0,0.00012602,2]
[352859675,1739377853555,-500.0,0.00012602,2]
[352859676,1739377853564,-647.6,0.00012602,2]
[352859677,1739377853574,-500.0,0.00012602,2]
[352859678,1739377853584,-500.0,0.00012602,2]
[352859679,1739377853594,-2066.17,0.00012602,2]
[352859680,1739377853603,-646.67,0.00012602,2]
[352859681,1739377853616,-500.0,0.00012602,2]
[352859682,1739377853627,-2279.74,0.00012602,2]
[352859683,1739377853638,-500.0,0.00012602,2]
[352859684,1739377853648,-1191.76,0.00012602,2]
[352859685,1739377853658,-4668.81,0.00012602,2]
[352859686,1739377853667,-500.0,0.00012602,2]
[352859687,1739377853677,-500.0,0.00012602,2]
[352859688,1739377853687,-516.29,0.00012602,2]
[352859689,1739377853697,-963.2,0.00012602,2]
[352859690,1739377853708,-500.0,0.00012739,2]
[352859691,1739377853718,-500.0,0.00012739,2]
[352859692,1739377853726,-500.0,0.00012739,2]
[352859693,1739377853736,-500.0,0.00012739,2]
[352859694,1739377853745,-500.0,0.00012739,2]
[352859695,1739377853755,-500.0,0.00012739,2]
[352859696,1739377853764,-500.0,0.00012739,2]
[352859697,1739377853775,-500.0,0.00012739,2]
[352859698,1739377853787,-500.0,0.00012739,2]
[352859699,1739377853797,-272.96,0.00012739,2]
[352859700,1739377853806,-500.0,0.00012739,2]
[352859701,1739377853816,-2066.17,0.00012739,2]
[352859702,1739377853825,-646.67,0.00012739,2]
[352859703,1739377853834,-628.9,0.00012739,2]
[352859704,1739377853844,-2279.74,0.00012739,2]
[352859705,1739377853854,-287.35,0.00012739,2]
[352859706,1739377853863,-1191.76,0.00012739,2]
[352859707,1739377853872,-4668.81,0.00012739,2]
[352859708,1739377853882,-500.0,0.00012739,2]
[352859709,1739377853891,-500.0,0.00012739,2]
[352859710,1739377853901,-516.29,0.00012739,2]
[352859711,1739377853911,-963.2,0.00012739,2]
[352859712,1739377853922,-500.0,0.00012876,2]
[352859713,1739377853932,-500.0,0.00012876,2]
[352859714,1739377853941,-162.13282566,0.00012876,2]
[352859715,1739377853951,-195.88,0.00012876,2]
[352859716,1739377853961,-553.02278937,0.00012876,2]
[352859717,1739377853972,-500.0,0.00012876,2]
[352859718,1739377853981,-500.0,0.00012876,2]
[352859719,1739377853991,-500.0,0.00012876,2]
[352859720,1739377854000,-500.0,0.00012876,2]
[352859721,1739377854010,-533.03821772,0.00012876,2]
[352859722,1739377854020,-2066.17,0.00012876,2]
[352859723,1739377854029,-151.0,0.00012876,2]
[352859724,1739377854041,-151.0,0.00012876,2]
[352859725,1739377854051,-646.67,0.00012876,2]
[352859726,1739377854061,-151.0,0.00012876,2]
[352859727,1739377854072,-151.0,0.00012876,2]
[352859728,1739377854082,-2279.74,0.00012876,2]
[352859729,1739377854093,-151.0,0.00012876,2]
[352859730,1739377854103,-1191.76,0.00012876,2]
[352859731,1739377854114,-4668.81,0.00012876,2]
[352859732,1739377854123,-151.0,0.00012876,2]
[352859733,1739377854134,-500.0,0.00012876,2]
[352859734,1739377854143,-500.0,0.00012876,2]
[352859735,1739377854153,-151.0,0.00012876,2]
[352859736,1739377854163,-516.29,0.00012876,2]
[352859737,1739377854173,-963.2,0.00012876,2]
[352859738,1739377854183,-168.53537946,0.000129,2]
[352859739,1739377854192,-188621.86208298,0.00013,2]
[352859740,1739377854202,-151.0,0.00013,2]
[352859741,1739377854211,-311.23574677,0.00013013,2]
[352859742,1739377854221,-500.0,0.00013013,2]
[352859743,1739377854231,-500.0,0.00013013,2]
[352859744,1739377854242,-500.0,0.00013013,2]
[352859745,1739377854251,-500.0,0.00013013,2]
[352859746,1739377854261,-463.68,0.00013013,2]
[352859747,1739377854271,-500.0,0.00013013,2]
[352859748,1739377854283,-151.0,0.00013013,2]
[352859749,1739377854293,-151.0,0.00013013,2]
[352859750,1739377854303,-151.0,0.00013013,2]
[352859751,1739377854313,-151.0,0.00013013,2]
[352859752,1739377854324,-151.0,0.00013013,2]
[352859753,1739377854333,-2066.17,0.00013013,2]
[352859754,1739377854343,-646.67,0.00013013,2]
[352859755,1739377854353,-2279.74,0.00013013,2]
[352859756,1739377854363,-1191.76,0.00013013,2]
[352859757,1739377854372,-4668.81,0.00013013,2]
[352859758,1739377854383,-500.0,0.00013013,2]
[352859759,1739377854392,-500.0,0.00013013,2]
[352859760,1739377854403,-516.29,0.00013013,2]
[352859761,1739377854413,-963.2,0.00013013,2]
[352859762,1739377854422,-500.0,0.0001308,2]
[352859763,1739377854433,-500.0,0.0001315,2]
[352859764,1739377854444,-500.0,0.0001315,2]
[352859765,1739377854455,-500.0,0.0001315,2]
[352859766,1739377854465,-500.0,0.0001315,2]
[352859767,1739377854475,-500.0,0.0001315,2]
[352859768,1739377854484,-151.0,0.0001315,2]
[352859769,1739377854496,-151.0,0.0001315,2]
[352859770,1739377854508,-151.0,0.0001315,2]
[352859771,1739377854517,-151.0,0.0001315,2]
[352859772,1739377854527,-2066.17,0.0001315,2]
[352859773,1739377854539,-646.67,0.0001315,2]
[352859774,1739377854548,-2279.74,0.0001315,2]
[352859775,1739377854557,-1191.76,0.0001315,2]
[352859776,1739377854567,-4668.81,0.0001315,2]
[352859777,1739377854576,-500.0,0.0001315,2]
[352859778,1739377854586,-500.0,0.0001315,2]
[352859779,1739377854595,-516.29,0.0001315,2]
[352859780,1739377854607,-963.2,0.0001315,2]
[352859781,1739377854616,-500.0,0.00013287,2]
[352859782,1739377854627,-500.0,0.00013287,2]
[352859783,1739377854636,-484.1,0.00013287,2]
[352859784,1739377854646,-500.0,0.00013287,2]
[352859785,1739377854655,-500.0,0.00013287,2]
[352859786,1739377854664,-245.979153,0.00013287,2]
[352859787,1739377854674,-245.979153,0.00013287,2]
[352859788,1739377854683,-151.0,0.00013287,2]
[352859789,1739377854694,-2066.17,0.00013287,2]
[352859790,1739377854703,-646.67,0.00013287,2]
[352859791,1739377854712,-2279.74,0.00013287,2]
[352859792,1739377854722,-1191.76,0.00013287,2]
[352859793,1739377854731,-4668.81,0.00013287,2]
[352859794,1739377854741,-500.0,0.00013287,2]
[352859795,1739377854750,-500.0,0.00013287,2]
[352859796,1739377854760,-516.29,0.00013287,2]
[352859797,1739377854769,-963.2,0.00013287,2]
[352859798,1739377854779,-191.372,0.00013319,2]
[352859799,1739377854789,-500.0,0.00013424,2]
[352859800,1739377854798,-500.0,0.00013424,2]
[352859801,1739377854807,-500.0,0.00013424,2]
[352859802,1739377854817,-500.0,0.00013424,2]
[352859803,1739377854826,-2066.17,0.00013424,2]
[352859804,1739377854836,-646.67,0.00013424,2]
[352859805,1739377854845,-2279.74,0.00013424,2]
[352859806,1739377854855,-1191.76,0.00013424,2]
[352859807,1739377854865,-4668.81,0.00013424,2]
[352859808,1739377854874,-194.1,0.00013424,2]
[352859809,1739377854883,-356.3,0.00013424,2]
[352859810,1739377854893,-516.29,0.00013424,2]
[352859811,1739377854902,-963.2,0.00013424,2]
[352859812,1739377854913,-500.0,0.00013561,2]
[352859813,1739377854923,-500.0,0.00013561,2]
[352859814,1739377854931,-500.0,0.00013561,2]
[352859815,1739377854940,-500.0,0.00013561,2]
[352859816,1739377854950,-2066.17,0.00013561,2]
[352859817,1739377854959,-646.67,0.00013561,2]
[352859818,1739377854967,-2279.74,0.00013561,2]
[352859819,1739377854978,-1191.76,0.00013561,2]
[352859820,1739377854987,-4668.81,0.00013561,2]
[352859821,1739377854996,-516.29,0.00013561,2]
[352859822,1739377855006,-963.2,0.00013561,2]
[352859823,1739377855015,-500.0,0.00013698,2]
[352859824,1739377855024,-500.0,0.00013698,2]
[352859825,1739377855035,-500.0,0.00013698,2]
[352859826,1739377855045,-151.0,0.00013698,2]
[352859827,1739377855054,-500.0,0.00013698,2]
[352859828,1739377855063,-2066.17,0.00013698,2]
[352859829,1739377855073,-646.67,0.00013698,2]
[352859830,1739377855082,-2279.74,0.00013698,2]
[352859831,1739377855091,-1191.76,0.00013698,2]
[352859832,1739377855101,-4668.81,0.00013698,2]
[352859833,1739377855111,-516.29,0.00013698,2]
[352859834,1739377855120,-963.2,0.00013698,2]
[352859835,1739377855130,-153.0,0.00013699,2]
[352859836,1739377855139,-196.095216,0.00013699,2]